[Event "German-ch Blitz Women 2022"]
[Site "Magdeburg"]
[Date "2022.08.13"]
[Round "6.1"]
[White "Paehtz, Elisabeth"]
[Black "Nikolaeva, Mariya A"]
[Result "1-0"]
[ECO "D02"]
[WhiteElo "2484"]
[BlackElo "1309"]
[Annotator "TA"]
[PlyCount "126"]
[EventDate "2022.08.10"]
[EventType "tourn"]
[EventCountry "GER"]
[SourceTitle "playchess.com"]
[Source "ChessBase"]
[SourceQuality "1"]
[TimeControl "180+2"]

{[%evp 11,126,18,22,20,40,39,55,40,50,26,54,60,64,52,56,56,69,39,34,44,204,35,93,86,92,99,96,83,86,68,77,73,91,68,110,74,157,90,100,37,45,39,56,35,43,17,15,-8,-8,-12,-10,-17,-3,-26,-35,-40,0,0,0,0,0,0,0,0,0,-9,-17,-12,0,0,8,-6,6,19,18,-71,18,18,164,164,153,150,143,158,137,147,153,134,288,152,463,397,475,445,466,453,429,205,328,0,375,373,364,190,497,338,358,0,367,236,400,400,538,533,704,155,657]} 1. d4 {[%emt 0:00:01]} Nf6 {[%emt 0:00:01]} 2. Nf3 {[%emt 0:00:01]} d5 {[%emt 0:00:02]} 3. Bf4 {[%emt 0:00:01]} e6 {[%emt 0:00:01]} 4. e3 {[%emt 0:00:01]} a6 {[%emt 0:00:02]} 5. Nbd2 {[%emt 0:00:03]} c5 {[%emt 0:00:02]} 6. c3 {[%emt 0:00:01]} Nc6 {[%emt 0:00:03]} 7. Bd3 {[%emt 0:00:01] D02: 1 d4 d5 2 Nf3 sidelines, including 2...Nf6 3 g3 and 2...Nf6 3 Bf4.} cxd4 {[%emt 0:00:03]} 8. exd4 {[%emt 0:00:02]} Bd6 {[%emt 0:00:02]} 9. Bg3 {[%emt 0:00:01] White is slightly better.} O-O {[%emt 0:00:07]} 10. O-O {[%emt 0:00:04]} Qc7 {[%emt 0:00:17]} 11. Bxd6 {[%emt 0:00:03]} Qxd6 {[%emt 0:00:01]} 12. Qe2 {[%emt 0:00:04]} Nd7 {[%emt 0:00:17]} 13. Rfe1 {[%emt 0:00:17] [#]} Re8 $146 {[%emt 0:00:18]} ({Predecessor:} 13... b5 14. Nb3 Bb7 15. Rad1 Rac8 16. Rc1 Nb6 17. Ne5 Nxe5 18. Qxe5 Qxe5 19. Rxe5 Nc4 20. Re2 Rc7 {½-½ (27) Nieberle,J-Bechter,F Germany 2006}) 14. Ng5 {[%emt 0:00:05]} h6 {[%emt 0:00:07]} 15. Ngf3 {[%emt 0:00:36]} f5 $2 {[%emt 0:00:02]} (15... b5 $14) 16. Ne5 $2 {[%emt 0:00:06]} (16. Bxf5 $1 $18 Nf6 17. Bg6) 16... Nf6 {[%emt 0:00:11]} ({Black should play} 16... Ncxe5 $14 17. dxe5 Qb6) 17. Ndf3 $16 {[%emt 0:00:05]} Ne4 {[%emt 0:00:04]} 18. Nxc6 {[%emt 0:00:04]} ({Of course not} 18. Bxe4 $6 fxe4 19. Nd2 (19. Nxc6 $2 exf3 20. Qxf3 Qxc6 $19) 19... Nxe5 20. dxe5 Qb6 $11) 18... bxc6 {[%emt 0:00:09]} 19. Ne5 {[%emt 0:00:08]} c5 {[%emt 0:00:01]} 20. f3 {[%emt 0:00:11]} Nf6 {[%emt 0:00:17]} 21. Qe3 {[%emt 0:00:02]} cxd4 {[%emt 0:00:11]} 22. Qxd4 {[%emt 0:00:04]} a5 {[%emt 0:00:02]} 23. Bb5 {[%emt 0:00:04]} Rf8 {[%emt 0:00:13]} (23... Bd7 $142 24. a4 (24. Nxd7 Nxd7 25. c4 Rab8 $14) 24... Bxb5 25. axb5 Nd7) 24. Re2 {[%emt 0:00:13] White is much more active. The black rooks are badly placed.} ({White should try} 24. a4) 24... Ba6 {[%emt 0:00:01]} 25. Bxa6 {[%emt 0:00:01]} (25. c4 $16) 25... Rxa6 $14 {[%emt 0:00:01]} 26. Rae1 {[%emt 0:00:03]} Re8 {[%emt 0:00:17]} 27. Nd3 {[%emt 0:00:03] Nc5 is the strong threat.} Rc6 {[%emt 0:00:05] Inhibits Nc5.} 28. Qe5 {[%emt 0:00:20]} (28. Qa7 {is more complex.} Ra6 29. Qc5 Qb8 30. Re3) 28... Qxe5 {[%emt 0:00:11]} 29. Rxe5 {[%emt 0:00:04]} Kf7 {[%emt 0:00:13]} 30. R5e2 {[%emt 0:00:02] [#] And now Ne5+ would win.} Nd7 {[%emt 0:00:09]} 31. Kf2 {[%emt 0:00:01]} Rb6 {[%emt 0:00:04]} 32. Rd2 {[%emt 0:00:14]} g5 {[%emt 0:00:03]} 33. h4 {[%emt 0:00:02]} g4 {[%emt 0:00:15]} 34. fxg4 {[%emt 0:00:05]} fxg4 {[%emt 0:00:02]} 35. Kg3 {[%emt 0:00:06]} Nf6 {[%emt 0:00:08]} 36. Ne5+ {[%emt 0:00:01]} Kg7 {[%emt 0:00:04]} 37. Rde2 {[%emt 0:00:07]} h5 {[%emt 0:00:04]} 38. Rf1 {[%emt 0:00:04][%cal Of1f6] [#] Threatens to win with Rxf6!} Ne4+ {[%emt 0:00:01]} 39. Kh2 {[%emt 0:00:03]} g3+ {[%emt 0:00:02]} 40. Kh3 {[%emt 0:00:07]} Rb7 {[%emt 0:00:01]} 41. Rf4 {[%emt 0:00:06]} Rf8 {[%emt 0:00:02]} 42. Rxf8 {[%emt 0:00:13]} Kxf8 $11 {[%emt 0:00:01][%mdl 4096] Endgame KRN-KRN} 43. Ng6+ {[%emt 0:00:00]} (43. Nf3 $1 $11 {keeps the balance.}) 43... Kg7 {[%emt 0:00:02]} (43... Ke8 $17 {aiming for ...Rg7.} 44. Nf4 Rg7) 44. Nf4 {[%emt 0:00:01][%csl LRe6,LRh5]} Rf7 {[%emt 0:00:02] White stays focused until the end.} (44... Kh6 $11 {and Black stays safe.}) 45. Nxh5+ $18 {[%emt 0:00:02]} Kg6 {[%emt 0:00:01]} 46. Nxg3 {[%emt 0:00:04]} Nf2+ {[%emt 0:00:03]} 47. Kh2 {[%emt 0:00:01]} Ng4+ {[%emt 0:00:01]} 48. Kg1 {[%emt 0:00:01]} e5 {[%emt 0:00:02]} 49. Nf1 {[%emt 0:00:04]} e4 $2 {[%emt 0:00:02]} (49... Kf5 $16 50. Ne3+ Nxe3 51. Rxe3 Rb7) 50. Ne3 (50. c4 $18) 50... Nf6 $2 {[%emt 0:00:02]} (50... Nxe3 $16 51. Rxe3 Kf5) 51. Rd2 {[%emt 0:00:06]} Rd7 {[%emt 0:00:01]} 52. g3 {[%emt 0:00:03]} Kf7 {[%emt 0:00:06]} 53. Kg2 {[%emt 0:00:01]} Ke6 {[%emt 0:00:01]} 54. Rd4 {[%emt 0:00:01]} (54. g4 $142) 54... Ke5 {[%emt 0:00:02]} (54... Rg7 $142 55. Rd2 a4) 55. Rd2 $2 {[%emt 0:00:03]} (55. Kh3 $18) 55... Rb7 $2 {[%emt 0:00:03][%mdl 8192]} (55... Ke6 $1 $11 56. g4 Rf7) 56. Rf2 {[%emt 0:00:02]} a4 {[%emt 0:00:02]} 57. a3 {[%emt 0:00:03]} (57. g4 $142) 57... Rb8 $2 {[%emt 0:00:02]} (57... d4 {is more resistant.}) 58. Rd2 {[%emt 0:00:03]} Rg8 {[%emt 0:00:01]} 59. Rf2 $2 {[%emt 0:00:08]} ({Better is} 59. Kh3 $18) 59... Ke6 $2 {[%emt 0:00:04][%mdl 8192]} (59... Rb8 $1 $11) 60. Nf5 {[%emt 0:00:02]} Nh5 $2 {[%emt 0:00:03]} (60... Ng4 {keeps fighting.}) 61. Kh3 {[%emt 0:00:05]} e3 {[%emt 0:00:03]} 62. Nd4+ {[%emt 0:00:04]} Ke5 {[%emt 0:00:01]} 63. Rf3 {[%emt 0:00:02]} (63. Rf5+ $18 {is the precise move to win.} Ke4 64. Rxh5) 63... Kd6 $2 {Weighted Error Value: White=0.56/Black=0.70} (63... Ke4 $16) 1-0

[Event "German-ch Blitz Women 2022"]
[Site "Magdeburg"]
[Date "2022.08.13"]
[Round "6.2"]
[White "Zhou, Lepu Coco"]
[Black "Schulze, Lara"]
[Result "0-1"]
[ECO "B31"]
[WhiteElo "1986"]
[BlackElo "2292"]
[Annotator "TA"]
[PlyCount "54"]
[EventDate "2022.08.10"]
[EventType "tourn"]
[EventCountry "GER"]
[SourceTitle "playchess.com"]
[Source "ChessBase"]
[SourceQuality "1"]
[TimeControl "180+2"]

{[%evp 9,54,-3,-9,-13,0,-429,-418,-418,-417,-413,-415,-522,-528,-514,-478,-544,-529,-543,-535,-543,-535,-554,-528,-531,-502,-558,-552,-563,-553,-639,-631,-895,-887,-893,-901,-870,-752,-1116,-1065,-1011,0,-1056,-909,-1145,-779,-833,-853]} 1. e4 {[%emt 0:00:01][%cal Be2e4,Be4e5][%mdl 32]} c5 {[%emt 0:00:01]} 2. Nf3 {[%emt 0:00:02]} Nc6 {[%emt 0:00:00]} 3. Bb5 {[%emt 0:00:02]} g6 {[%emt 0:00:03]} 4. c3 {[%emt 0:00:01]} Nf6 {[%emt 0:00:09][%cal Bg8f6,Bf6d5,Bd5c3][%mdl 32]} 5. e5 {[%emt 0:00:05]} Nd5 $1 {[%emt 0:00:01]} 6. d4 {[%emt 0:00:02] B31: Sicilian: 2...Nc6 3 Bb5 g6.} cxd4 {[%emt 0:00:19]} 7. cxd4 $2 {[%emt 0:00:02][%mdl 8192] [#]} (7. O-O $11) 7... Qa5+ $19 {[%emt 0:00:10]} 8. Nc3 {[%emt 0:00:14] Black is winning.} Nxc3 {[%emt 0:00:03]} 9. bxc3 {[%emt 0:00:10]} Qxb5 {[%emt 0:00:01]} 10. d5 {[%emt 0:00:05]} Na5 {[%emt 0:00:08][%cal Bc6a5,Ba5c4,Bc4e3,Be3f1][%mdl 32] [#]} 11. d6 $146 {[%emt 0:00:12]} ({Predecessor:} 11. Be3 Nc4 12. O-O Nxe3 13. fxe3 Bh6 14. Qd2 O-O 15. Rab1 Qc5 16. Rfe1 b6 17. Rb4 {0-1 (34) Blanco,N (1776)-Isayeva,A (2025) Khanty-Mansiysk 2010}) 11... exd6 {[%emt 0:00:30]} 12. exd6 {[%emt 0:00:04]} Bg7 {[%emt 0:00:21] Against Qd4} 13. Nd4 {[%emt 0:00:55]} Qe5+ {[%emt 0:00:10]} 14. Ne2 {[%emt 0:00:01]} O-O {[%emt 0:00:05]} 15. O-O {[%emt 0:00:06]} Nc4 {[%emt 0:00:05]} 16. Bf4 {[%emt 0:00:02]} Qf5 {[%emt 0:00:19]} 17. Bg3 {[%emt 0:00:12]} b6 {[%emt 0:00:05]} 18. Nd4 {[%emt 0:00:02]} Qd5 {[%emt 0:00:05]} 19. Qg4 {[%emt 0:00:44]} Bb7 {[%emt 0:00:03][%csl Gb7][%cal Rd5g2] [#]} 20. f3 {[%emt 0:00:05]} Ne3 {[%emt 0:00:03]} 21. Qxd7 {[%emt 0:00:09]} Nxf1 {[%emt 0:00:04]} 22. Rxf1 {[%emt 0:00:03]} Rad8 {[%emt 0:00:06]} 23. Qc7 {[%emt 0:00:05]} Rc8 {[%emt 0:00:04]} 24. Qe7 {[%emt 0:00:05]} Rcd8 $2 {[%emt 0:00:10]} (24... Rfe8 $19 25. Qd7 Ba6) 25. Ne2 $2 {[%emt 0:00:17][%mdl 8192]} (25. Qc7 $11 Rc8 26. Qe7) 25... Rfe8 {[%emt 0:00:05] Black is clearly winning.} 26. Qc7 {[%emt 0:00:03]} Qc5+ {[%emt 0:00:03]} 27. Qxc5 {[%emt 0:00:02]} bxc5 {[%emt 0:00:01] Black took control after the opening.  Weighted Error Value: White=0.95/Black=0.09 (flawless)} 0-1

[Event "German-ch Blitz Women 2022"]
[Site "Magdeburg"]
[Date "2022.08.13"]
[Round "6.3"]
[White "Muetsch, Annmarie"]
[Black "Melamed, Tatjana"]
[Result "1/2-1/2"]
[ECO "B03"]
[WhiteElo "2249"]
[BlackElo "2380"]
[Annotator "TA"]
[PlyCount "113"]
[EventDate "2022.08.10"]
[EventType "tourn"]
[EventCountry "GER"]
[SourceTitle "playchess.com"]
[Source "ChessBase"]
[SourceQuality "1"]
[TimeControl "180+2"]

{[%evp 9,113,28,39,32,37,5,86,60,80,72,93,94,100,101,102,98,98,69,60,56,70,59,79,49,49,45,44,57,75,35,62,48,60,27,70,68,80,54,114,32,136,-19,25,0,0,-52,-7,-8,214,231,210,215,464,462,446,448,710,718,672,541,684,722,714,722,722,694,667,-712,-250,-253,0,0,43,54,35,35,53,53,51,8,0,0,0,0,0,0,0,-8,0,0,-4,-4,0,0,8,-8,8,-8,-8,-40,48,48,48,48,130,48]} 1. e4 {[%emt 0:00:01][%cal Be2e4,Be4e5][%mdl 32]} Nf6 {[%emt 0:00:01]} 2. e5 {[%emt 0:00:01]} Nd5 {[%emt 0:00:01]} 3. d4 {[%emt 0:00:01]} d6 {[%emt 0:00:01]} 4. Bc4 {[%emt 0:00:01]} e6 {[%emt 0:00:03]} 5. Nf3 {[%emt 0:00:04]} Be7 {[%emt 0:00:02]} 6. O-O {[%emt 0:00:03] B03: Alekhine's Defence: Four Pawns Attack.} O-O {[%emt 0:00:06]} 7. c3 {[%emt 0:00:07]} Nc6 {[%emt 0:00:05]} (7... c5 $11 {remains equal.}) 8. Qe2 {[%emt 0:00:09]} dxe5 {[%emt 0:00:23]} 9. dxe5 {[%emt 0:00:04] [#]} Bc5 $146 {[%emt 0:00:17]} ({Predecessor:} 9... a6 10. Nbd2 b5 11. Bd3 Nf4 12. Bxh7+ Kxh7 13. Qe4+ Ng6 14. Qxc6 Rb8 15. Qe4 Bb7 {1-0 (32) Chan,N (1883)-Radchuk,Y Moscow 2015}) 10. Bg5 {[%emt 0:00:06]} Be7 {[%emt 0:00:03]} 11. Bd2 {[%emt 0:00:15]} Bc5 {[%emt 0:00:04]} 12. a4 {[%emt 0:00:11]} a5 {[%emt 0:00:01]} 13. Na3 {[%emt 0:00:01]} (13. Bd3 {with more complications.} f5 14. exf6 gxf6 15. Bh6) 13... Nce7 {[%emt 0:00:01]} 14. Nc2 {[%emt 0:00:10]} Ng6 {[%emt 0:00:02]} 15. Rad1 {[%emt 0:00:08]} Qe7 {[%emt 0:00:02]} 16. Bg5 {[%emt 0:00:07]} Qe8 {[%emt 0:00:22]} 17. Bb5 {[%emt 0:00:08]} (17. Bxd5 exd5 18. b3 (18. Rxd5 b6 $11) 18... c6 $11) 17... c6 $1 {[%emt 0:00:01]} 18. Bc4 {[%emt 0:00:06]} b6 {[%emt 0:00:10]} 19. Ncd4 {[%emt 0:00:13]} Bb7 {[%emt 0:00:02]} 20. h4 {[%emt 0:00:08]} h6 {[%emt 0:00:16]} 21. Bc1 {[%emt 0:00:09]} (21. h5 $5 {[%cal Rh5g6]}) 21... Qe7 {[%emt 0:00:02]} 22. g3 {[%emt 0:00:05]} Rfd8 {[%emt 0:00:05]} 23. Bd3 {[%emt 0:00:08]} Nf8 {[%emt 0:00:06]} (23... Qe8 $14) 24. h5 {[%emt 0:00:06]} (24. Nb3 $1 $16) 24... Rac8 {[%emt 0:00:05]} (24... Qe8 $1 $14) 25. Qe4 $2 {[%emt 0:00:05] White is more active.} (25. Nb3 $1 $16) 25... f5 {[%emt 0:00:25]} (25... Bxd4 $5 26. Qxd4 (26. Nxd4 $2 c5 $19) 26... Nb4 $1 $17) 26. exf6 {[%emt 0:00:06]} Nxf6 {[%emt 0:00:01]} 27. Qh4 {[%emt 0:00:13]} (27. Qe2 $1 $11) 27... Rd5 {[%emt 0:00:01]} (27... Bxd4 $5 28. Nxd4 c5 $15) 28. g4 {[%emt 0:00:17]} N6h7 $2 {[%emt 0:00:08]} (28... Bxd4 $11 29. Nxd4 (29. cxd4 c5 $11) 29... c5) 29. Qxe7 $18 {[%emt 0:00:05]} Bxe7 {[%emt 0:00:01]} 30. Bc4 $1 {[%emt 0:00:04]} c5 $2 {[%emt 0:00:20] [#]} (30... Bd6 31. Rfe1 Nf6 32. Bxd5 (32. Nxe6 Rxd1 33. Rxd1 Nd5 $18) 32... cxd5 33. Nxe6 Bc6) 31. Nxe6 $1 {[%emt 0:00:23][%mdl 512]} Rxd1 {[%emt 0:00:02]} 32. Rxd1 {[%emt 0:00:08]} Bxf3 {[%emt 0:00:04]} (32... Nxe6 $142 33. Bxe6+ Kf8) 33. Ng5+ {[%emt 0:00:01]} Kh8 {[%emt 0:00:02]} 34. Nf7+ {[%emt 0:00:05]} Kg8 {[%emt 0:00:01]} 35. Nxh6+ Kh8 36. Nf7+ {[%emt 0:00:03]} Kg8 {[%emt 0:00:01]} 37. Ne5+ {[%emt 0:00:02]} Kh8 {[%emt 0:00:01]} 38. Ng6+ $4 {[%emt 0:00:01][%mdl 8192]} (38. Nxf3 $18 {and all is fine.} Nf6 39. Ne5) 38... Nxg6 $19 {[%emt 0:00:04]} 39. Re1 {[%emt 0:00:07] [#]} Rd8 $2 {[%emt 0:00:11]} 40. hxg6 $11 {[%emt 0:00:03]} Rd1 {[%emt 0:00:08]} (40... Nf6 $2 41. Rxe7 Rd1+ 42. Kh2 $18) 41. Rxd1 {[%emt 0:00:02]} Bxd1 {[%emt 0:00:01]} 42. gxh7 {[%emt 0:00:01]} Bxa4 $14 {[%emt 0:00:02][%mdl 4096] Endgame KBB-KBB} 43. Bd3 {[%emt 0:00:05]} Be8 $1 {[%emt 0:00:02]} 44. Bf4 {[%emt 0:00:03]} a4 {[%emt 0:00:02]} 45. Bc7 {[%emt 0:00:01]} b5 {[%emt 0:00:01]} 46. f4 {[%emt 0:00:03]} g6 {[%emt 0:00:01]} 47. f5 {[%emt 0:00:01]} Kxh7 {[%emt 0:00:01]} 48. Kf2 {[%emt 0:00:02]} gxf5 {[%emt 0:00:02]} 49. Bxf5+ {[%emt 0:00:01]} Kg7 {[%emt 0:00:00]} 50. Be5+ {[%emt 0:00:03]} Bf6 {[%emt 0:00:01]} 51. Bd6 {[%emt 0:00:01]} c4 {[%emt 0:00:06]} 52. Ba3 {[%emt 0:00:02]} Bc6 {[%emt 0:00:01]} 53. Kg3 {[%emt 0:00:01]} Be5+ {[%emt 0:00:02]} 54. Kh4 {[%emt 0:00:01]} Bf6+ {[%emt 0:00:01]} ({Black should play} 54... Kf6 $15) 55. g5 {[%emt 0:00:00]} Be5 {[%emt 0:00:01]} 56. Kg4 {[%emt 0:00:02] Prevents Bf4.} Bd5 {[%emt 0:00:03]} (56... Kf7 $14) 57. Bb4 {[%emt 0:00:02] What a bad dream for Black.  Weighted Error Value: White=0.31/Black=0.35} (57. Bd7 $16) 1/2-1/2

[Event "German-ch Blitz Women 2022"]
[Site "Magdeburg"]
[Date "2022.08.13"]
[Round "6.4"]
[White "Daemering, Katrin"]
[Black "Staerk, Elisa"]
[Result "0-1"]
[ECO "B06"]
[WhiteElo "1965"]
[BlackElo "1947"]
[Annotator "TA"]
[PlyCount "64"]
[EventDate "2022.08.10"]
[EventType "tourn"]
[EventCountry "GER"]
[SourceTitle "playchess.com"]
[Source "ChessBase"]
[SourceQuality "1"]
[TimeControl "180+2"]

{[%evp 9,64,0,0,-42,-37,-40,-25,-58,-64,-87,-80,-100,-77,-102,-75,-109,-101,-127,-25,-33,-16,-49,-44,-41,-40,-50,-33,-37,-37,-31,-27,-33,-8,-13,-9,-23,-20,-47,-25,-43,-27,-244,228,-183,-149,-180,-121,-116,-86,-138,-141,-212,-231,-718,-712,-29997,-29998]} 1. e4 {[%emt 0:00:01]} g6 {[%emt 0:00:00]} 2. d4 Bg7 3. Be3 {[%emt 0:00:03]} c5 {[%emt 0:00:02]} 4. c3 {[%emt 0:00:01]} cxd4 {[%emt 0:00:02]} 5. cxd4 {[%emt 0:00:01]} d5 {[%emt 0:00:01]} 6. Nc3 {[%emt 0:00:03] B06: Modern Defence.} dxe4 {[%emt 0:00:02]} 7. Nxe4 {[%emt 0:00:02]} Nc6 {[%emt 0:00:04]} 8. Ne2 {[%emt 0:00:11] Black has an edge.} Nf6 {[%emt 0:00:11] [#]} 9. N4c3 $146 {[%emt 0:00:12]} ({Predecessor:} 9. Nxf6+ Bxf6 10. Qd2 O-O 11. Rd1 Qd6 12. Nc3 Bf5 13. a3 Rfd8 14. Nb5 Qd7 15. d5 {½-½ (34) Gonzalez Guijas,S (1386)-Rico Carretero,J (1795) Gijon 2021}) 9... O-O {[%emt 0:00:06]} 10. h3 {[%emt 0:00:03] Inhibits Ng4.} e6 {[%emt 0:00:03]} 11. Qd2 {[%emt 0:00:03]} Nd5 {[%emt 0:00:09]} 12. Nxd5 {[%emt 0:00:07]} Qxd5 {[%emt 0:00:04]} 13. Rd1 {[%emt 0:00:14]} Bd7 {[%emt 0:00:04] Black is more active.} (13... Qxa2 $17 {Hoping for ...Rd8.} 14. h4 b6) 14. Nc3 $11 {[%emt 0:00:02]} Qa5 {[%emt 0:00:02]} 15. Be2 {[%emt 0:00:07]} Ne7 {[%emt 0:00:14][%cal Bc6e7,Be7f5,Bf5e3][%mdl 32]} 16. O-O {[%emt 0:00:06]} Nf5 {[%emt 0:00:17]} 17. a3 {[%emt 0:00:14]} Nxe3 {[%emt 0:00:06]} 18. fxe3 {[%emt 0:00:02]} Bc6 {[%emt 0:00:05]} 19. Bf3 {[%emt 0:00:08]} Rac8 {[%emt 0:00:08]} 20. Qf2 {[%emt 0:00:16]} Qg5 {[%emt 0:00:18]} 21. Bxc6 {[%emt 0:00:13]} Rxc6 {[%emt 0:00:03]} 22. Ne4 {[%emt 0:00:04]} Qe7 {[%emt 0:00:08]} 23. Rc1 {[%emt 0:00:03]} Rfc8 {[%emt 0:00:03]} 24. Rc3 {[%emt 0:00:05]} Rxc3 {[%emt 0:00:06]} 25. bxc3 {[%emt 0:00:02]} (25. Nxc3 $11 Rd8 26. Qd2) 25... b6 $4 {[%emt 0:00:06][%mdl 8192] [#]} (25... f5 $19 {and life is good for Black.} 26. Nd2 (26. Nc5 $2 b6 $19) 26... Rxc3) 26. Qd2 $4 {[%emt 0:00:11][%mdl 8192]} (26. Qxf7+ $1 $18 {[%mdl 512] is the narrow road to win.} Qxf7 27. Rxf7) 26... f5 {[%emt 0:00:11][%cal Bf7f5,Bf5f4,Bf4e3][%mdl 32]} 27. Nf2 {[%emt 0:00:05]} Qc7 {[%emt 0:00:08]} (27... Qxa3 $19 28. Nd1 a5) 28. Rc1 {[%emt 0:00:04]} Bh6 {[%emt 0:00:09]} 29. Kh1 {[%emt 0:00:09]} ({White should try} 29. Nd3) 29... Qg3 {[%emt 0:00:06]} 30. Nd1 {[%emt 0:00:03]} (30. Re1 $17 {was necessary.}) 30... f4 $19 {[%emt 0:00:06][%cal Rf4e3]} 31. Qe2 {[%emt 0:00:19]} (31. Qf2) 31... fxe3 {[%emt 0:00:12]} 32. Nb2 {[%emt 0:00:14]} Bf4 {[%emt 0:00:05] Weighted Error Value: White=0.96/Black=0.42} 0-1

[Event "German-ch Blitz Women 2022"]
[Site "Magdeburg"]
[Date "2022.08.13"]
[Round "6.5"]
[White "Khrapko, Marharyta"]
[Black "Zschischang, Marine"]
[Result "0-1"]
[ECO "A01"]
[WhiteElo "2128"]
[BlackElo "2083"]
[Annotator "TA"]
[PlyCount "88"]
[EventDate "2022.08.10"]
[EventType "tourn"]
[EventCountry "GER"]
[SourceTitle "playchess.com"]
[Source "ChessBase"]
[SourceQuality "1"]
[TimeControl "180+2"]

{[%evp 10,88,-8,-21,-18,-27,-22,-27,44,39,49,43,43,39,72,0,104,86,102,67,70,0,0,0,99,-27,0,-16,34,0,37,-134,-141,-159,-161,-204,-227,-225,-181,-181,-123,-199,119,0,0,-295,-281,-307,-301,-345,-346,-322,-111,-114,-98,-129,-133,-192,-176,-193,-97,-121,-121,-164,0,-229,-235,-764,-293,-371,-361,-781,-97,-1337,-1315,-2066,-2034,-29992,-29991,-29994,-29995]} 1. b3 {[%emt 0:00:02]} e6 {[%emt 0:00:01]} 2. Bb2 {[%emt 0:00:01]} d5 {[%emt 0:00:01][%cal Bd7d5,Bd5e4][%mdl 32]} 3. e4 {[%emt 0:00:02]} dxe4 {[%emt 0:00:01]} 4. Nc3 {[%emt 0:00:00]} Nf6 {[%emt 0:00:01]} 5. Qe2 {[%emt 0:00:01]} Bb4 {[%emt 0:00:02]} 6. O-O-O {[%emt 0:00:05]} Qe7 $1 {[%emt 0:00:03] The main line 6...Qe7 scores better than 6...Bxc3. C00: French: Unusual White 2nd moves.} 7. Kb1 {[%emt 0:00:03]} O-O {[%emt 0:00:14]} 8. Nxe4 {[%emt 0:00:02]} Nxe4 {[%emt 0:00:01]} (8... Nbd7 $11) 9. Qxe4 $14 {[%emt 0:00:02] [#]} a5 $146 {[%emt 0:00:03]} ({Predecessor:} 9... Ba3 10. Ba1 a5 11. h4 a4 12. g4 axb3 13. cxb3 Nd7 14. Bd3 f5 15. gxf5 Nc5 {1-0 (24) Demirtas,H (1794)-Grigoryan,A (1959) Riga 2018}) 10. a4 {[%emt 0:00:04]} Nd7 {[%emt 0:00:04]} 11. h4 {[%emt 0:00:06]} f5 {[%emt 0:00:09]} 12. Qf3 {[%emt 0:00:12]} (12. Qe3 $16) 12... e5 {[%emt 0:00:03]} (12... Nf6 $11 {keeps the balance.}) 13. Bc4+ {[%emt 0:00:10]} Kh8 {[%emt 0:00:09]} 14. Nh3 {[%emt 0:00:00]} Nb6 $1 {[%emt 0:00:04]} (14... Qxh4 $2 15. Qe3 h6 16. Nf4 $1 $18 (16. Ng5 f4 $16)) 15. Bb5 {[%emt 0:00:00]} ({White should try} 15. d3 $14) 15... c6 $11 {[%emt 0:00:01]} 16. Bf1 {[%emt 0:00:00]} Be6 {[%emt 0:00:05]} (16... Ba3 $11) 17. Ng5 {[%emt 0:00:00]} (17. h5 $16) 17... Bd5 {[%emt 0:00:03]} 18. Qe3 {[%emt 0:00:00][%csl LRb6,LRe5] [#]} (18. Qh5 $5 {[%cal Rh5h7]} Bg8 19. Nf3 $11) 18... Rae8 $1 {[%emt 0:00:10]} 19. f4 {[%emt 0:01:01]} (19. c4 $5 {[%cal Rc4d5]}) 19... Nd7 {[%emt 0:00:13]} 20. Bd3 $2 {[%emt 0:00:55]} (20. fxe5 $14 {stays ahead.} Nxe5 21. c4) 20... e4 $1 $17 {[%emt 0:00:10]} ({Worse is} 20... Bxg2 21. Rhe1 $11) 21. Be2 {[%emt 0:00:07]} Nf6 {[%emt 0:00:05] Against Bh5} 22. h5 {[%emt 0:00:13]} h6 {[%emt 0:00:06]} 23. Nh3 {[%emt 0:00:02]} Bd6 {[%emt 0:00:19]} 24. Rhg1 {[%emt 0:00:06]} Bf7 {[%emt 0:00:13]} (24... Bc5 $19 25. Bd4 Bxd4 26. Qxd4 Bf7) 25. Nf2 {[%emt 0:00:10]} (25. g4 $17 fxg4 26. Bxg4) 25... Bxh5 $2 {[%emt 0:00:10]} (25... Bc5 $19 26. Qg3 Qd8) 26. Bxh5 {[%emt 0:00:05]} (26. Bxf6 $16 Rxf6 27. Bxh5) 26... Nxh5 $11 {[%emt 0:00:01]} 27. Rh1 $2 {[%emt 0:00:06][%mdl 8192]} (27. Qh3 $11 Nxf4 28. Qxh6+ Kg8 29. Bxg7 Qxg7 30. Qxd6) 27... Bxf4 $19 {[%emt 0:00:20]} 28. Qc3 {[%emt 0:00:11]} Nf6 {[%emt 0:00:09]} 29. g3 {[%emt 0:00:05]} Bg5 {[%emt 0:00:05]} 30. Nh3 {[%emt 0:00:02]} Kg8 $2 {[%emt 0:00:08]} (30... Nd5 $19 {has better winning chances.} 31. Qc4 Bf6) 31. Nxg5 $17 {[%emt 0:00:01]} hxg5 {[%emt 0:00:01]} 32. Qe3 {[%emt 0:00:03]} Ng4 $1 {[%emt 0:00:05]} 33. Qg1 {[%emt 0:00:04]} (33. Qe2 $17) 33... Kf7 {[%emt 0:00:05]} 34. Rf1 {[%emt 0:00:02] [#]} Ke6 {[%emt 0:00:02]} (34... Kg6 $1 $19 35. Rd1 Rh8) 35. Qd4 {[%emt 0:00:03]} Rd8 {[%emt 0:00:04]} 36. Qc4+ {[%emt 0:00:02] [#]} Kd7 $2 {[%emt 0:00:02]} (36... Rd5 $1 $19 {Hoping for ...Rfd8.} 37. Qe2 Kd7) 37. d3 $2 {[%emt 0:00:02]} (37. Bc3 $1 $11 {and White stays safe.}) 37... Kc8 $19 {[%emt 0:00:07] Threatens to win with ...Ne3.} 38. Rh7 $2 {[%emt 0:00:01]} (38. Bd4 exd3 39. Bc5) 38... Nf6 $2 {[%emt 0:00:09]} (38... Ne3 39. Qc3 Nxf1 40. dxe4 Nd2+ 41. Ka2 Nxe4 42. Qxa5 Rf7 43. Qa8+ Kc7 44. Qa5+ Kd7) 39. Rh2 {[%emt 0:00:05]} e3 {[%emt 0:00:01]} 40. Rxf5 $2 {[%emt 0:00:02]} (40. Qc3 f4 41. gxf4 gxf4 42. Qxa5) 40... Nd5 $2 {[%emt 0:00:02]} (40... e2 $19 {and Black stays clearly on top.} 41. Bc3 Nd5 42. Rxd5 e1=Q+ 43. Bxe1 Qxe1+ 44. Kb2 Rxd5) 41. Re2 {[%emt 0:00:02][%mdl 8192] This costs White the game.} Rxf5 {[%emt 0:00:01]} 42. Qg4 {[%emt 0:00:01]} Qd7 {[%emt 0:00:02] ( -> ...Rf1+)} 43. c4 {[%emt 0:00:02]} Nb4 {[%emt 0:00:01]} 44. Rxe3 {[%emt 0:00:02]} Rf1+ {[%emt 0:00:01] Weighted Error Value: White=1.01/Black=0.64} 0-1